[Event "FRA-ch Youth U16 2018"]
[Site "Agen"]
[Date "2018.04.21"]
[Round "8"]
[White "Degraeve, Remy"]
[Black "Gely, Yann"]
[Result "1-0"]
[ECO "D35"]
[WhiteElo "2294"]
[BlackElo "2044"]
[Annotator "NA"]
[PlyCount "83"]
[EventDate "2018.??.??"]
[EventType "swiss"]
[EventCountry "FRA"]
[SourceTitle "playchess.com"]
[Source "ChessBase"]
[SourceQuality "1"]
[TimeControl "5400+30"]

1. d4 {[%emt 0:00:00]} Nf6 {[%emt 0:01:09]} 2. c4 {[%emt 0:00:00]} e6 {[%emt 0:00:26]} 3. Nc3 {[%emt 0:00:42]} d5 {[%emt 0:00:06]} 4. cxd5 {[%emt 0:00:06]} exd5 {[%emt 0:00:08]} 5. Bg5 {[%emt 0:00:04]} Be7 {[%emt 0:00:50]} 6. e3 {[%emt 0:00:05]} c6 {[%emt 0:02:30]} 7. Bd3 {[%emt 0:01:16]} Nbd7 {[%emt 0:01:25]} 8. Nge2 {[%emt 0:00:21]} Nf8 {[%emt 0:03:10]} 9. O-O {[%emt 0:01:08]} Ne6 {[%emt 0:00:03]} 10. Bh4 {[%emt 0:00:24]} O-O {[%emt 0:00:53]} 11. Qc2 {[%emt 0:01:43]} g6 {[%emt 0:02:45]} 12. Rad1 {[%emt 0:01:40]} Ng7 {[%emt 0:01:20] LiveBook: 4 Games} 13. f3 {[%emt 0:01:45]} Re8 {[%emt 0:14:25]} 14. Kh1 {[%emt 0:01:36]} Bf5 {[%emt 0:07:14] D36: Queen's Gambit Declined: Exchange Variation: Main line (5 Bg5 c6 6 Qc2)} 15. Bf2 Bxd3 {[%emt 0:01:07]} 16. Qxd3 {[%emt 0:06:52]} (16. Rxd3 Ne6 17. e4 Ng5 18. e5 Nh5 19. g4 Ng7 20. Ng3 Qd7 21. f4 Ne4 22. f5 Nxf2+ 23. Rxf2 {1-0 (65) Macedo,M (2345)-Souza,R (2163) Natal 2016}) 16... Qc7 $146 {[%emt 0:05:04]} ({Predecessor:} 16... Bf8 17. Rde1 Ne6 18. Bh4 Be7 19. Ng1 Nh5 20. Bxe7 Qxe7 21. f4 f5 {½-½ (21) Wittfoth,K (2139)-Diotallevi,M (2016) Bad Woerishofen 2015}) 17. e4 {[%emt 0:02:39]} dxe4 {[%emt 0:02:13]} (17... a5 $11) 18. fxe4 {[%emt 0:00:13]} Rad8 {[%emt 0:01:27]} 19. Qf3 {[%emt 0:02:36]} Rf8 {[%emt 0:05:40]} 20. Bg3 {[%emt 0:02:55]} Qc8 {[%emt 0:05:46]} 21. e5 {[%emt 0:08:53]} Nd5 {[%emt 0:04:25]} 22. Nxd5 {[%emt 0:00:05]} cxd5 {[%emt 0:03:54]} 23. Bf4 {[%emt 0:04:10]} f5 {[%emt 0:03:24]} (23... f6 $11 {keeps the balance.}) 24. Bh6 {[%emt 0:00:17]} Rf7 {[%emt 0:05:06]} 25. Bxg7 {[%emt 0:01:46]} Rxg7 {[%emt 0:00:01]} 26. Rc1 {[%emt 0:00:58]} Qd7 {[%emt 0:01:31]} 27. Nf4 {[%emt 0:02:38]} Bg5 {[%emt 0:01:01]} 28. Rc5 {[%emt 0:00:06]} Bxf4 {[%emt 0:00:22]} 29. Qxf4 {[%emt 0:00:05]} Qe6 {[%emt 0:06:13]} 30. h4 {[%emt 0:03:13]} Rgd7 {[%emt 0:03:07]} 31. Rfc1 {[%emt 0:01:48]} Qe7 {[%emt 0:01:06]} 32. R1c3 {[%emt 0:00:47]} Kg7 {[%emt 0:00:41]} 33. h5 {[%emt 0:01:55]} Rf8 {[%emt 0:02:03]} 34. hxg6 {[%emt 0:02:50]} hxg6 {[%emt 0:00:10]} 35. Rh3 {[%emt 0:00:06]} g5 {[%emt 0:02:28]} 36. Qh2 {[%emt 0:00:21]} Qd8 {[%emt 0:02:21]} 37. Rh7+ {[%emt 0:00:32]} Kg8 {[%emt 0:00:02]} 38. Rh8+ {[%emt 0:00:06]} Kf7 {[%emt 0:00:06]} 39. Qh5+ {[%emt 0:00:08]} Ke6 {[%emt 0:00:42]} 40. Qg6+ {[%emt 0:00:05]} Ke7 {[%emt 0:00:14]} 41. Rh7+ {[%emt 0:00:03]} Rf7 {[%emt 0:00:08]} 42. Qxf7# {[%emt 0:00:03]} 1-0

[Event "FRA-ch Youth U16 2018"]
[Site "Agen"]
[Date "2018.04.21"]
[Round "8"]
[White "Djidjeli, Sarah"]
[Black "Grall, Alba"]
[Result "1-0"]
[ECO "C40"]
[WhiteElo "1903"]
[BlackElo "1855"]
[Annotator "NA"]
[PlyCount "81"]
[EventDate "2018.??.??"]
[EventType "swiss"]
[EventCountry "FRA"]
[SourceTitle "playchess.com"]
[Source "ChessBase"]
[SourceQuality "1"]
[TimeControl "5400+30"]

1. e4 {[%emt 0:00:00]} e5 {[%emt 0:00:03]} 2. Nf3 {[%emt 0:00:00]} f5 {[%emt 0:00:03]} 3. d3 {[%emt 0:10:01]} d6 {[%emt 0:00:31]} 4. Be2 {[%emt 0:01:06]} Nf6 5. Nc3 {[%emt 0:01:15]} Be7 {[%emt 0:02:57] LiveBook: 3 Games} 6. Bg5 {[%emt 0:04:28]} Nc6 {[%emt 0:00:48]} 7. Bxf6 {[%emt 0:02:36]} Bxf6 {[%emt 0:00:58]} 8. Nd5 {[%emt 0:00:25]} O-O {[%emt 0:02:55]} 9. Qd2 {[%emt 0:01:27]} Ne7 {[%emt 0:07:51]} 10. Nxf6+ {[%emt 0:02:25]} Rxf6 {[%emt 0:00:08]} 11. h3 {[%emt 0:05:53]} Ng6 {[%emt 0:04:35]} 12. g3 {[%emt 0:03:48]} Bd7 {[%emt 0:05:45]} 13. Ng5 {[%emt 0:11:16]} Qe7 {[%emt 0:10:18]} 14. O-O-O {[%emt 0:03:43]} b5 {[%emt 0:10:18]} 15. d4 $11 {[%emt 0:10:35]} exd4 {[%emt 0:09:57]} 16. Qxd4 {[%emt 0:00:26]} Rff8 {[%emt 0:00:21]} 17. f4 {[%emt 0:01:02]} fxe4 {[%emt 0:07:04]} 18. Qd5+ {[%emt 0:06:33]} Kh8 {[%emt 0:00:31]} 19. Nxe4 {[%emt 0:04:41]} Rab8 {[%emt 0:02:14]} 20. Bg4 {[%emt 0:01:31]} Qe8 {[%emt 0:07:20]} 21. Rde1 {[%emt 0:12:50]} Bc6 {[%emt 0:00:55]} 22. Qd3 {[%emt 0:01:00]} Qf7 {[%emt 0:01:34]} 23. Kb1 {[%emt 0:05:36]} Rbe8 {[%emt 0:04:39]} 24. Bf3 {[%emt 0:04:26]} Bd7 {[%emt 0:02:31]} 25. Ng5 {[%emt 0:01:44]} Qf6 {[%emt 0:00:44]} 26. h4 {[%emt 0:01:06]} Bf5 {[%emt 0:03:32]} 27. Be4 {[%emt 0:00:11]} Bxe4 {[%emt 0:00:17]} 28. Nxe4 {[%emt 0:01:39]} Qf5 {[%emt 0:00:41]} 29. h5 {[%emt 0:00:12]} Ne7 {[%emt 0:00:33]} 30. h6 {[%emt 0:00:20]} Ng8 {[%emt 0:09:29]} 31. hxg7+ {[%emt 0:00:19]} Kxg7 {[%emt 0:00:06]} 32. Qc3+ {[%emt 0:01:19]} Nf6 {[%emt 0:00:47]} 33. Qxc7+ {[%emt 0:01:03]} Rf7 {[%emt 0:03:09]} 34. Qxf7+ {[%emt 0:00:07]} Kxf7 {[%emt 0:00:14]} 35. Nxd6+ {[%emt 0:00:02]} Kg6 {[%emt 0:00:08]} 36. Nxf5 {[%emt 0:00:30]} Kxf5 {[%emt 0:00:04]} 37. Rxe8 {[%emt 0:00:09]} Nxe8 {[%emt 0:00:07]} 38. Rxh7 {[%emt 0:00:02]} Kg4 {[%emt 0:00:08]} 39. Rxa7 {[%emt 0:00:17]} Kxg3 {[%emt 0:00:05]} 40. f5 {[%emt 0:00:10]} Kg4 {[%emt 0:00:07]} 41. Rb7 {[%emt 0:00:37]} 1-0

[Event "FRA-ch Youth U16 2018"]
[Site "Agen"]
[Date "2018.04.21"]
[Round "8"]
[White "Aubert, Estee"]
[Black "Sabiani, Chjara"]
[Result "0-1"]
[ECO "D79"]
[WhiteElo "1892"]
[BlackElo "1723"]
[Annotator "NA"]
[PlyCount "84"]
[EventDate "2018.??.??"]
[EventType "swiss"]
[EventCountry "FRA"]
[SourceTitle "playchess.com"]
[Source "ChessBase"]
[SourceQuality "1"]
[TimeControl "5400+30"]

1. d4 {[%emt 0:00:00]} Nf6 {[%emt 0:00:06]} 2. Nf3 {[%emt 0:00:00]} g6 {[%emt 0:00:08]} 3. g3 {[%emt 0:00:00]} Bg7 {[%emt 0:00:11]} 4. Bg2 {[%emt 0:00:09]} O-O {[%emt 0:00:08]} 5. O-O {[%emt 0:00:36]} d5 {[%emt 0:00:30]} 6. c4 {[%emt 0:02:25]} c6 {[%emt 0:01:36]} 7. cxd5 {[%emt 0:02:30]} cxd5 {[%emt 0:00:21]} 8. Nc3 {[%emt 0:01:27]} Ne4 {[%emt 0:02:22]} 9. Qb3 {[%emt 0:07:30]} Nxc3 {[%emt 0:01:23]} 10. bxc3 {[%emt 0:01:05]} Nc6 {[%emt 0:01:29] LiveBook: 26 Games} 11. Nd2 {[%emt 0:05:40]} e5 {[%emt 0:13:34] D79: Fianchetto Grünfeld: Symmetrical Variation (6 0-0 c6 7 cxd5 cxd5)} (11... e6 12. e4 Na5 13. Qd1 Qc7 14. Qf3 b6 15. exd5 exd5 16. Nb3 Nxb3 17. Bf4 Nxd4 18. cxd4 Qc2 19. Rac1 Qxa2 20. Qxd5 Qxd5 21. Bxd5 {0-1 (44) Nabaty,T (2619)-Swiercz,D (2656) Gjakova 2016}) 12. Ba3 {[%emt 0:11:09]} (12. Bxd5 Na5 $17) 12... Re8 $146 {[%emt 0:00:42]} (12... exd4 $11 13. Bxf8 (13. Bxd5 Na5 $17) 13... Qxf8) ({Predecessor:} 12... Na5 13. Qxd5 Qxd5 14. Bxd5 Rd8 15. e4 exd4 16. cxd4 Bxd4 17. Rab1 Be6 18. Rb5 Bb6 19. Nb3 {½-½ (106) Eckhardt,C (2155)-Kopylov,L (2222) Germany 2008}) 13. Bxd5 {[%emt 0:08:13]} Qd7 {[%emt 0:10:48]} 14. e4 {[%emt 0:02:27]} exd4 {[%emt 0:02:13]} 15. cxd4 {[%emt 0:05:41]} Nxd4 {[%emt 0:01:10]} 16. Qd3 {[%emt 0:02:37]} Ne2+ {[%emt 0:20:31]} 17. Kh1 {[%emt 0:05:12]} (17. Qxe2 $11 Qxd5 18. exd5 Rxe2 19. Rfe1 Rxe1+ 20. Rxe1) 17... Nc3 {[%emt 0:03:58]} 18. Rae1 {[%emt 0:03:28]} b6 {[%emt 0:05:17]} 19. Nc4 {[%emt 0:19:53]} Ba6 {[%emt 0:04:56]} 20. Rc1 {[%emt 0:06:41]} Bxc4 {[%emt 0:11:00]} 21. Qxc4 {[%emt 0:01:00]} Rac8 {[%emt 0:00:10]} 22. Qb3 {[%emt 0:03:37]} Red8 {[%emt 0:09:38]} 23. Rfe1 {[%emt 0:03:46]} Bd4 {[%emt 0:02:47]} 24. Kg2 {[%emt 0:01:14]} a5 {[%emt 0:02:40]} 25. Bb2 {[%emt 0:01:58]} a4 {[%emt 0:00:55]} 26. Qb4 $19 {[%emt 0:01:48]} (26. Qa3 $15 Nxd5 27. Bxd4 Nf4+ 28. gxf4 Qxd4 29. Rcd1) 26... Nxd5 {[%emt 0:00:56]} 27. Qxd4 {[%emt 0:00:09]} Nf4+ {[%emt 0:01:25]} 28. Kf3 {[%emt 0:00:10]} Qxd4 {[%emt 0:00:20]} 29. Bxd4 {[%emt 0:00:15]} Rxc1 {[%emt 0:00:23]} 30. Rxc1 {[%emt 0:00:23]} Rxd4 {[%emt 0:00:15]} 31. Kxf4 {[%emt 0:00:08]} Rd2 {[%emt 0:00:06]} 32. f3 {[%emt 0:01:26]} Rxa2 {[%emt 0:00:16]} 33. Rb1 {[%emt 0:00:39]} a3 {[%emt 0:00:33]} 34. Rxb6 {[%emt 0:00:36]} Rxh2 {[%emt 0:00:05]} 35. Ra6 {[%emt 0:00:07]} a2 {[%emt 0:00:08]} 36. Ke5 {[%emt 0:00:13]} Kg7 {[%emt 0:00:47]} 37. g4 {[%emt 0:01:03]} h5 {[%emt 0:01:42]} 38. Kf4 {[%emt 0:02:21]} h4 {[%emt 0:01:00]} 39. e5 {[%emt 0:00:17]} Re2 {[%emt 0:00:12]} 40. Kg5 {[%emt 0:00:59]} h3 {[%emt 0:00:36]} 41. f4 {[%emt 0:00:31]} h2 {[%emt 0:00:10]} 42. f5 {[%emt 0:01:00]} h1=Q {[%emt 0:00:27]} 0-1

[Event "FRA-ch Youth U16 2018"]
[Site "Agen"]
[Date "2018.04.21"]
[Round "8"]
[White "Conti, Anne-Marie"]
[Black "Herreman-Boutot, Louise"]
[Result "1-0"]
[ECO "E05"]
[WhiteElo "1865"]
[BlackElo "1719"]
[Annotator "NA"]
[PlyCount "59"]
[EventDate "2018.??.??"]
[EventType "swiss"]
[EventCountry "FRA"]
[SourceTitle "playchess.com"]
[Source "ChessBase"]
[SourceQuality "1"]
[TimeControl "5400+30"]

1. d4 {[%emt 0:00:00]} d5 {[%emt 0:00:10]} 2. c4 {[%emt 0:00:00]} dxc4 {[%emt 0:00:07]} 3. Nf3 {[%emt 0:00:01]} Nf6 {[%emt 0:00:13]} 4. g3 {[%emt 0:00:06]} e6 {[%emt 0:00:40]} 5. Bg2 {[%emt 0:00:15]} Be7 {[%emt 0:00:42]} 6. O-O {[%emt 0:00:52]} O-O {[%emt 0:00:49]} 7. Ne5 {[%emt 0:00:45]} c5 {[%emt 0:03:25]} 8. dxc5 {[%emt 0:02:03]} Bxc5 {[%emt 0:02:29]} 9. Nxc4 {[%emt 0:02:02]} Nbd7 {[%emt 0:09:47]} 10. Nc3 {[%emt 0:06:55] LiveBook: 3 Games} Qc7 {[%emt 0:05:06]} (10... Nb6 $14 11. Be3 Bxe3 12. Nxe3 Rb8) 11. Qb3 {[%emt 0:02:14]} a6 {[%emt 0:03:32]} 12. Rd1 {[%emt 0:06:59]} (12. Na4 $14) 12... Rb8 {[%emt 0:02:38]} 13. Bf4 {[%emt 0:08:35]} e5 $14 {[%emt 0:00:56]} 14. Bg5 {[%emt 0:05:07]} h6 {[%emt 0:07:05]} 15. Bxf6 {[%emt 0:03:43]} Nxf6 {[%emt 0:01:05]} 16. Rac1 {[%emt 0:01:46]} b5 {[%emt 0:02:48]} 17. Nd2 {[%emt 0:01:59]} Qe7 {[%emt 0:04:35]} 18. Nd5 {[%emt 0:06:17]} Nxd5 19. Bxd5 {[%emt 0:03:48]} Bb7 {[%emt 0:06:20]} 20. Bxb7 {[%emt 0:11:18]} Rxb7 {[%emt 0:00:26]} 21. Ne4 {[%emt 0:01:44]} Rc7 {[%emt 0:04:29]} 22. Nxc5 {[%emt 0:03:10]} Rxc5 {[%emt 0:00:10]} 23. Rxc5 {[%emt 0:00:27]} Qxc5 {[%emt 0:00:08]} 24. Rd5 {[%emt 0:01:14]} Qc1+ {[%emt 0:01:25]} 25. Kg2 {[%emt 0:00:50]} Qc6 {[%emt 0:01:06]} 26. f3 {[%emt 0:01:41]} Qe6 {[%emt 0:01:03]} 27. Qd3 {[%emt 0:00:40]} Rc8 {[%emt 0:04:33]} 28. a3 {[%emt 0:00:24]} Qc6 {[%emt 0:02:26]} 29. Rxe5 {[%emt 0:02:04]} Qc2 {[%emt 0:01:40]} 30. Re8+ {[%emt 0:00:19]} 1-0

[Event "FRA-ch Youth U16 2018"]
[Site "Agen"]
[Date "2018.04.21"]
[Round "8"]
[White "Francois, Gwladys"]
[Black "Bellahcene, Meriem"]
[Result "1/2-1/2"]
[ECO "B31"]
[WhiteElo "1765"]
[BlackElo "1862"]
[Annotator "NA"]
[PlyCount "114"]
[EventDate "2018.??.??"]
[EventType "swiss"]
[EventCountry "FRA"]
[SourceTitle "playchess.com"]
[Source "ChessBase"]
[SourceQuality "1"]
[TimeControl "5400+30"]

1. e4 {[%emt 0:00:00]} c5 {[%emt 0:00:03]} 2. Nf3 {[%emt 0:00:16]} Nc6 {[%emt 0:00:05]} 3. Bb5 {[%emt 0:01:05]} g6 {[%emt 0:00:13]} 4. Bxc6 {[%emt 0:01:02]} dxc6 {[%emt 0:00:03]} 5. d3 {[%emt 0:00:46]} Bg7 {[%emt 0:00:04]} 6. h3 {[%emt 0:01:19]} Nf6 {[%emt 0:00:32]} 7. Nc3 {[%emt 0:02:06]} O-O {[%emt 0:02:22]} 8. O-O {[%emt 0:02:46]} Nd7 {[%emt 0:02:06]} 9. Be3 {[%emt 0:02:04]} b6 {[%emt 0:01:04]} 10. Qd2 {[%emt 0:01:50]} e5 {[%emt 0:00:28]} 11. Bh6 {[%emt 0:02:37] LiveBook: 3 Games B31: Sicilian: 2...Nc6 3 Bb5 g6} Re8 {[%emt 0:01:24]} 12. Bxg7 {[%emt 0:00:47]} Kxg7 {[%emt 0:00:04]} 13. a4 {[%emt 0:02:26]} a5 {[%emt 0:02:50] [#]} 14. Ne2 $146 {[%emt 0:03:14]} ({Predecessor:} 14. Nh2 Nf8 15. f4 exf4 16. Qxf4 {½-½ (44) Holroyd,K (2533)-Oreopoulos,K (2497) ICCF email 2015}) 14... Nf8 {[%emt 0:03:28]} 15. b3 {[%emt 0:04:45]} Qd6 {[%emt 0:03:04]} 16. Nh2 {[%emt 0:01:30]} Ne6 {[%emt 0:11:42]} 17. f4 {[%emt 0:02:37]} exf4 {[%emt 0:09:47]} 18. Nxf4 {[%emt 0:00:36]} Nxf4 {[%emt 0:01:26]} 19. Qxf4 {[%emt 0:00:45]} Qxf4 {[%emt 0:06:57]} 20. Rxf4 {[%emt 0:00:11]} Ra7 {[%emt 0:01:19]} 21. Nf1 {[%emt 0:10:57]} Be6 {[%emt 0:11:52]} 22. Nd2 {[%emt 0:02:03]} b5 {[%emt 0:02:38]} 23. Rff1 {[%emt 0:06:28]} h6 {[%emt 0:09:36]} 24. Nb1 {[%emt 0:10:58]} b4 {[%emt 0:06:07]} 25. Nd2 {[%emt 0:00:23]} f5 {[%emt 0:00:36]} 26. Rae1 {[%emt 0:01:45]} Rae7 {[%emt 0:03:28]} 27. exf5 {[%emt 0:02:46]} Bxf5 {[%emt 0:00:20]} 28. Rxe7+ {[%emt 0:00:17]} Rxe7 {[%emt 0:00:01]} 29. Nc4 {[%emt 0:00:46]} Ra7 {[%emt 0:08:00]} 30. Re1 {[%emt 0:00:39]} Kf6 {[%emt 0:00:21]} 31. Re5 {[%emt 0:00:49]} Be6 {[%emt 0:00:15]} 32. Rxc5 {[%emt 0:01:01]} Bxc4 {[%emt 0:00:36]} 33. Rxc4 {[%emt 0:00:24]} Ra6 {[%emt 0:00:04]} 34. Rc5 {[%emt 0:02:08]} Ke6 {[%emt 0:00:04]} 35. Kf2 {[%emt 0:01:00]} Kd6 {[%emt 0:00:02]} 36. Rc4 {[%emt 0:00:15]} c5 {[%emt 0:00:32]} 37. Rg4 {[%emt 0:05:47]} Kd5 {[%emt 0:01:04]} 38. Re4 {[%emt 0:00:25]} Rf6+ {[%emt 0:02:52]} 39. Ke2 {[%emt 0:02:25]} Rf5 {[%emt 0:01:06]} 40. Rg4 {[%emt 0:01:59]} Re5+ {[%emt 0:03:40]} 41. Kd2 {[%emt 0:00:52]} g5 {[%emt 0:00:08]} 42. c3 {[%emt 0:01:55]} bxc3+ {[%emt 0:03:55]} 43. Kxc3 {[%emt 0:00:05]} Re2 {[%emt 0:00:18]} 44. h4 {[%emt 0:00:30]} Re5 {[%emt 0:01:34]} 45. hxg5 $18 {[%emt 0:01:12]} hxg5 {[%emt 0:00:54]} 46. Rg3 {[%emt 0:00:54]} Rf5 {[%emt 0:00:29]} 47. Rh3 {[%emt 0:08:04]} Rf2 {[%emt 0:00:28]} 48. Rg3 {[%emt 0:00:09]} Rf5 {[%emt 0:00:04]} 49. Rg4 {[%emt 0:00:04]} Re5 {[%emt 0:00:52]} 50. d4 {[%emt 0:01:11]} Re3+ {[%emt 0:01:09]} 51. Kd2 {[%emt 0:01:11]} Rxb3 {[%emt 0:00:29]} 52. dxc5 {[%emt 0:00:04]} Kxc5 {[%emt 0:00:22]} 53. Rxg5+ {[%emt 0:00:22]} Kb4 {[%emt 0:00:27]} 54. Rg4+ {[%emt 0:00:14]} Ka3 {[%emt 0:01:02]} 55. g3 {[%emt 0:00:33]} Rf3 {[%emt 0:01:40]} 56. Kc2 {[%emt 0:01:08]} Re3 {[%emt 0:00:16]} 57. Kd2 Rb3 1/2-1/2

[Event "FRA-ch Youth U16 2018"]
[Site "Agen"]
[Date "2018.04.22"]
[Round "9"]
[White "Bellahcene, Meriem"]
[Black "Conti, Anne-Marie"]
[Result "1/2-1/2"]
[ECO "B01"]
[WhiteElo "1862"]
[BlackElo "1865"]
[Annotator "NA RC"]
[PlyCount "113"]
[EventDate "2018.??.??"]
[EventType "swiss"]
[EventCountry "FRA"]
[SourceTitle "playchess.com"]
[Source "ChessBase"]
[SourceQuality "1"]
[TimeControl "5400+30"]

1. e4 {[%emt 0:00:00]} d5 {[%emt 0:00:10]} 2. exd5 {[%emt 0:00:31]} Qxd5 {[%emt 0:00:08]} 3. Nc3 {[%emt 0:00:29]} Qd6 {[%emt 0:00:29]} 4. Nf3 {[%emt 0:02:51]} Nf6 {[%emt 0:00:25]} 5. h3 {[%emt 0:02:43] B01: Scandinavian Defence} g6 {[%emt 0:00:30]} 6. Bc4 {[%emt 0:00:47]} Bg7 {[%emt 0:00:24]} 7. d3 {[%emt 0:00:53]} O-O {[%emt 0:00:43]} 8. O-O {[%emt 0:00:54]} a6 {[%emt 0:02:46]} 9. a4 {[%emt 0:03:09]} Nbd7 $146 {[%emt 0:03:44]} ({Predecessor:} 9... c5 10. Re1 Nc6 11. Ne4 Nxe4 12. dxe4 Nd4 {1-0 (53) Anton Guijarro,D (2627)-Vakhidov,J (2578) Almaty 2016}) 10. Re1 {[%emt 0:03:02]} Nb6 {[%emt 0:00:51]} 11. Bb3 {[%emt 0:00:27]} c6 {[%emt 0:01:43]} 12. Bg5 {[%emt 0:07:51]} Bf5 {[%emt 0:09:31]} 13. Qd2 {[%emt 0:06:10]} Nbd5 {[%emt 0:04:56]} 14. Nxd5 {[%emt 0:05:44]} cxd5 {[%emt 0:00:08]} 15. c3 {[%emt 0:00:22]} (15. Bf4 $16 Qc5 16. d4) 15... Rfe8 {[%emt 0:04:21]} 16. Re5 {[%emt 0:10:10]} Be6 {[%emt 0:04:57]} 17. Re2 {[%emt 0:06:31]} Nd7 {[%emt 0:03:01]} 18. d4 {[%emt 0:03:04]} f6 {[%emt 0:07:19]} 19. Bh6 {[%emt 0:04:09]} (19. Bf4 $16 Qb6 20. a5 Qxb3 21. Rxe6) 19... Bh8 {[%emt 0:01:10]} 20. Rae1 {[%emt 0:01:02]} Bf7 {[%emt 0:01:10]} 21. Bf4 {[%emt 0:03:57]} e5 {[%emt 0:00:28]} (21... Qb6 $142) 22. dxe5 {[%emt 0:01:58]} fxe5 {[%emt 0:02:21] [#]} 23. Bg3 $1 {[%emt 0:01:33]} Nc5 $2 {[%emt 0:05:10]} (23... Rad8 $16 24. a5 Qc6) 24. Bc2 {[%emt 0:02:14]} Nd7 {[%emt 0:03:39]} 25. Ng5 {[%emt 0:02:22]} Rad8 {[%emt 0:03:08]} 26. Nxf7 {[%emt 0:04:13]} Kxf7 {[%emt 0:00:11]} 27. Bb3 {[%emt 0:00:54]} Nc5 {[%emt 0:00:45]} 28. Bc2 {[%emt 0:03:43]} Re6 {[%emt 0:03:14]} 29. Rd1 {[%emt 0:02:39]} Qc6 {[%emt 0:04:42]} 30. a5 $14 Bf6 {[%emt 0:08:44]} 31. Qe1 {[%emt 0:05:24]} e4 {[%emt 0:11:16]} 32. Red2 {[%emt 0:04:14]} Bg5 {[%emt 0:01:49]} 33. Rd4 {[%emt 0:01:38]} Bf6 {[%emt 0:01:06]} 34. R4d2 {[%emt 0:00:05]} Bg5 {[%emt 0:00:38]} 35. Re2 {[%emt 0:04:02]} Rde8 {[%emt 0:02:17]} 36. b4 {[%emt 0:03:06]} Nd7 {[%emt 0:01:33]} 37. Bb3 {[%emt 0:00:14]} Nf6 {[%emt 0:00:30]} 38. Rc2 {[%emt 0:00:38]} e3 {[%emt 0:00:47]} 39. f4 {[%emt 0:01:47]} Bh6 {[%emt 0:00:50]} 40. c4 {[%emt 0:00:22]} Re4 {[%emt 0:05:00]} 41. cxd5 {[%emt 0:00:25]} Qd6 {[%emt 0:00:01]} 42. f5 {[%emt 0:01:05]} Bf4 {[%emt 0:00:04]} 43. fxg6+ {[%emt 0:00:28]} hxg6 {[%emt 0:00:31]} 44. Bxf4 {[%emt 0:00:02]} Rxf4 {[%emt 0:00:04]} 45. Re2 {[%emt 0:00:39]} Rxb4 {[%emt 0:00:38]} 46. Ba2 {[%emt 0:01:32]} Rbe4 {[%emt 0:01:17]} 47. Rd3 {[%emt 0:00:05]} Kg7 {[%emt 0:00:42]} 48. Rdxe3 {[%emt 0:00:21]} Qc5 {[%emt 0:00:57]} 49. Kf2 {[%emt 0:00:04]} Nxd5 {[%emt 0:01:22]} 50. Bxd5 {[%emt 0:00:40]} Rf8+ {[%emt 0:00:52]} 51. Kg1 {[%emt 0:01:15]} Rxe3 {[%emt 0:00:33]} 52. Rxe3 {[%emt 0:00:09]} Qxd5 {[%emt 0:00:21]} 53. Re7+ {[%emt 0:01:12]} Rf7 {[%emt 0:01:01]} 54. Qe5+ {[%emt 0:01:00]} Qxe5 {[%emt 0:00:27]} 55. Rxe5 {[%emt 0:00:02]} Kf6 {[%emt 0:00:17]} 56. Rc5 {[%emt 0:01:20]} Ke6 {[%emt 0:00:35]} 57. g4 {[%emt 0:00:50]} 1/2-1/2